bitfinex-derivatives/quotes_ETHF0:USTF0_20210107
["timestamp","ask_amount","ask_price","bid_price","bid_amount"]
[1610061719993,2.9087,1213.6,1213.5,2.77956856]
[1610061720595,4.00959,1213.8,1213.5,1.26344876]
[1610061721094,4.00959,1213.8,1213.7,1.26348525]
[1610061721297,4.00959,1213.8,1213.6,1.26341302]
[1610061721696,4.00959,1213.8,1213.5,2.77956805]
[1610061722397,4.00959,1213.8,1213.6,2.778999]
[1610061723703,4.00959,1213.8,1213.7,1.26299217]
[1610061724104,3.0565,1214.0,1213.7,1.26299217]
[1610061724303,6.0452,1214.8,1213.7,1.26299217]
[1610061724503,6.0452,1214.8,1213.7,2.77887766]
[1610061724705,6.0452,1214.8,1214.5,0.25263561]
[1610061725102,6.0452,1214.8,1214.6,0.25262873]
[1610061725303,4.00959,1214.7,1214.6,0.25262873]
[1610061725505,4.00959,1214.7,1214.6,0.50524679]
[1610061726504,4.00959,1214.7,1214.6,0.75781647]
[1610061726704,4.00959,1214.7,1214.6,2.2727354]
[1610061728506,4.00959,1214.7,1214.6,2.52515847]
[1610061728905,3.475,1214.8,1214.6,2.52515847]
[1610061729408,3.475,1214.8,1214.7,4.00959]
[1610061729606,4.00959,1214.9,1214.7,5.27217736]
[1610061729806,4.00959,1214.9,1214.7,1.26258736]
[1610061730206,4.00959,1214.9,1214.8,1.01009621]
[1610061730907,4.00959,1214.9,1214.8,2.27234139]
[1610061731309,4.00959,1214.9,1214.8,1.76740783]
[1610061731708,4.00959,1214.9,1214.8,1.51483859]
[1610061732611,4.00959,1214.9,1214.8,1.26224518]
[1610061732811,4.00959,1214.9,1214.7,0.252621]
[1610061733012,5.95969,1214.9,1214.7,0.252621]
[1610061733413,5.95969,1214.9,1214.6,0.25264272]
[1610061734515,5.95969,1214.9,1214.4,0.50528545]
[1610061734916,5.95969,1214.9,1214.3,0.75792817]
[1610061734917,5.95969,1214.9,1214.7,1.26307253]
[1610061735516,5.95969,1214.9,1214.2,0.50539911]
[1610061735716,49.2826,1214.8,1214.1,0.50543316]
[1610061736319,49.2826,1214.8,1214.0,0.50547826]
[1610061736717,49.2826,1214.8,1214.3,1.26328442]
[1610061737417,4.00959,1214.4,1214.3,1.26328442]
[1610061737618,6.56969,1214.4,1214.3,1.26328442]
[1610061738021,6.56969,1214.4,1214.1,1.2633343]
[1610061739418,4.00959,1214.2,1214.0,1.26340437]
[1610061740821,4.00959,1214.2,1213.9,1.26346992]
[1610061741424,4.00959,1214.0,1213.9,1.26346992]
[1610061741823,6.55159,1214.0,1213.9,1.26346992]
[1610061744630,6.55159,1214.0,1213.9,1.51625435]
[1610061746735,6.55159,1214.0,1213.9,1.7690181]
[1610061749734,6.55159,1214.0,1213.9,1.26346992]
[1610061750134,6.55159,1214.0,1213.9,1.76896104]
[1610061751236,6.55159,1214.0,1213.9,2.02172155]
[1610061751839,6.55159,1214.0,1213.9,2.27435363]
[1610061754638,6.55159,1214.0,1213.9,2.52699272]
[1610061756638,6.55159,1214.0,1213.9,2.27435319]
[1610061756938,6.55159,1214.0,1213.9,1.26346992]
[1610061757339,6.55159,1214.0,1213.9,2.52705576]
[1610061757538,2.542,1214.0,1213.9,2.52705576]
[1610061757738,4.00959,1214.2,1213.9,2.52705576]
[1610061757938,3.0254,1214.0,1213.9,1.26346992]
[1610061759442,7.03499,1214.0,1213.8,2.77919595]
[1610061760441,3.0254,1214.0,1213.8,2.77919595]
[1610061760842,3.0254,1214.0,1213.9,1.26309613]
[1610061761044,3.0254,1214.0,1213.9,2.77914434]
[1610061761244,2.5601,1214.4,1213.9,2.77914434]
[1610061761446,9.43469,1214.9,1214.3,4.00959]
[1610061761645,5.95969,1214.9,1214.3,6.82379]
[1610061762047,5.95969,1214.9,1214.8,1.01035871]
[1610061762250,1.9501,1214.9,1214.8,1.01035871]
[1610061762448,3.475,1216.1,1214.8,1.26279641]
[1610061762846,3.475,1216.1,1214.7,1.51524484]
[1610061763046,3.475,1216.1,1215.5,0.25254063]
[1610061763447,4.00959,1215.6,1215.5,0.25254063]
[1610061763848,7.11249,1215.6,1215.5,0.50496869]
[1610061764048,7.11249,1215.6,1215.5,0.2524647]
[1610061764449,7.11249,1215.6,1215.5,0.50493575]
[1610061764649,3.1029,1215.6,1215.5,0.50493575]
[1610061764851,3.1029,1215.6,1215.5,2.01934947]
[1610061765449,7.11249,1215.6,1215.5,2.01934947]
[1610061765650,7.11249,1215.6,1215.5,1.76690759]
[1610061766250,7.11249,1215.6,1215.5,0.50494793]
[1610061767051,67.62289,1215.6,1215.3,1.00987151]
[1610061767251,67.62289,1215.6,1215.2,1.26233939]
[1610061767252,67.62289,1215.6,1215.4,0.25253646]
[1610061767453,67.62289,1215.6,1215.2,0.25256508]
[1610061767851,67.62289,1215.6,1215.1,0.25258318]
[1610061768253,67.62289,1215.6,1215.0,0.25258845]
[1610061768754,67.62289,1215.6,1215.1,0.25258338]
[1610061769453,4.00959,1215.2,1215.1,0.25258338]
[1610061769653,6.54729,1215.2,1215.1,0.25258338]
[1610061770454,6.54729,1215.2,1214.8,1.01040632]
[1610061770455,6.54729,1215.2,1215.0,0.25259609]
[1610061771055,6.54729,1215.2,1214.9,0.25261318]
[1610061771457,4.00959,1215.0,1214.9,0.25261318]
[1610061771856,4.00959,1215.0,1214.7,0.75784036]
[1610061772057,4.00959,1215.0,1214.8,0.75778054]
[1610061773056,4.00959,1215.0,1214.7,0.75780885]
[1610061773456,4.00959,1214.8,1214.7,0.75780885]
[1610061773656,7.10459,1214.8,1214.7,0.75780885]
[1610061774856,7.10459,1214.8,1214.6,0.75797083]
[1610061775057,37.10459,1214.8,1214.6,0.75797083]
[1610061775261,77.2961,1214.7,1214.6,0.75797083]
[1610061775457,77.2961,1214.7,1214.6,0.25269651]
[1610061775857,77.2961,1214.7,1214.5,0.25269504]
[1610061776259,77.2961,1214.7,1214.4,0.25270532]
[1610061776664,77.2961,1214.7,1214.1,0.75823562]
[1610061777264,77.2961,1214.7,1214.0,1.0108213]
[1610061777265,77.2961,1214.7,1214.2,0.5054852]
[1610061777661,4.00959,1214.3,1214.2,0.5054852]
[1610061777863,6.33919,1214.3,1214.2,0.5054852]
[1610061778461,6.33919,1214.3,1214.2,58.1362852]
[1610061778661,6.33919,1214.3,1214.2,57.6308]
[1610061778861,2.3296,1214.3,1214.2,57.6308]
[1610061779062,3.095,1214.8,1214.2,60.15686039]
[1610061779261,2.5377,1215.2,1214.2,60.15686039]
[1610061779462,2.5377,1215.2,1214.7,1.01040735]
[1610061779660,4.00959,1215.4,1215.0,4.00959]
[1610061779862,3.1029,1215.6,1215.1,0.75768626]
[1610061780061,6.912,1215.8,1215.1,0.75768626]
[1610061780263,3.475,1216.1,1215.3,0.50507455]
[1610061780464,3.475,1216.1,1215.4,0.50498656]
[1610061780863,3.475,1216.1,1215.6,0.504921]
[1610061781462,3.475,1216.1,1215.5,0.75734777]
[1610061781463,3.475,1216.1,1215.7,0.50487027]
[1610061781665,3.475,1216.1,1215.6,0.50488498]
[1610061782066,6.6018,1216.1,1215.6,0.50488498]
[1610061782466,6.6018,1216.1,1215.7,0.50486735]
[1610061783566,6.6018,1216.1,1215.8,0.50484353]
[1610061784166,6.6018,1216.1,1215.7,0.50487429]
[1610061784967,6.6018,1216.1,1215.6,0.50489037]
[1610061785470,6.6018,1216.1,1215.8,0.50483464]
[1610061786470,6.6018,1216.1,1215.7,1.76663854]
[1610061786671,6.6018,1216.1,1215.8,0.25245258]
[1610061787576,4.00959,1215.9,1215.8,0.25245258]
[1610061787776,4.00959,1215.9,1215.7,0.25243421]
[1610061788578,4.00959,1215.9,1215.8,0.25242884]
[1610061789479,4.00959,1215.9,1215.7,0.252429]
[1610061790280,4.00959,1215.9,1215.8,0.2524273]
[1610061791785,4.00959,1215.9,1215.7,0.50484522]
[1610061791982,4.00959,1215.9,1215.8,0.50481383]
[1610061792583,4.00959,1215.9,1215.8,0.25242605]
[1610061792783,4.00959,1215.9,1215.8,0.75721592]
[1610061792984,6.6018,1216.1,1215.8,0.75721592]
[1610061793186,6.6018,1216.1,1215.8,1.00956556]
[1610061793385,3.1268,1216.1,1215.8,1.00956556]
[1610061793586,6.912,1217.0,1216.0,4.76669181]
[1610061793587,4.00959,1216.6,1216.0,4.76669181]
[1610061793785,6.912,1217.0,1216.1,8.4156]
[1610061793985,6.912,1217.0,1216.0,5.0189546]
[1610061794189,6.912,1217.0,1216.2,54.5201]
[1610061794386,6.912,1217.0,1216.5,0.25237765]
[1610061794593,6.912,1217.0,1216.6,0.25231011]
[1610061795387,6.912,1217.0,1216.7,0.25228346]
[1610061795590,4.00959,1216.8,1216.7,0.50453215]
[1610061795993,4.00959,1216.8,1216.6,0.25227712]
[1610061796387,4.00959,1216.8,1216.5,0.50455423]
[1610061796388,4.00959,1216.8,1216.5,0.25229936]
[1610061797388,4.00959,1216.8,1216.4,0.25230112]
[1610061798088,4.00959,1216.8,1216.5,0.25230032]
[1610061798289,4.00959,1216.8,1216.3,0.25232376]
[1610061798689,4.00959,1216.8,1216.1,0.25234161]
[1610061799289,4.00959,1216.8,1216.0,0.25238199]
[1610061799689,2.9368,1216.9,1215.9,0.25238106]
[1610061799690,4.00959,1216.1,1215.9,0.25238106]
[1610061799889,6.35409,1216.1,1216.0,0.25238696]
[1610061800691,6.35409,1216.1,1215.9,0.75708856]
[1610061801094,6.35409,1216.1,1216.0,0.75709085]
[1610061801499,6.35409,1216.1,1216.0,1.26143302]
[1610061801693,6.35409,1216.1,1216.0,2.27073724]
[1610061802095,6.35409,1216.1,1216.0,2.01849275]
[1610061802696,6.35409,1216.1,1216.0,1.26143302]
[1610061802897,6.35409,1216.1,1215.9,0.25245845]
[1610061803095,6.35409,1216.1,1215.7,0.25248285]
[1610061803096,36.35409,1216.1,1215.7,0.25248285]
[1610061803295,36.35409,1216.1,1215.6,0.50496571]
[1610061803496,58.008,1215.9,1215.4,0.50499136]
[1610061803698,4.00959,1215.5,1215.1,0.50508161]
[1610061803895,36.68749,1215.5,1215.1,0.50508161]
[1610061804096,36.68749,1215.5,1215.0,0.75762242]
[1610061804097,36.68749,1215.5,1215.0,0.50516285]
[1610061804296,36.68749,1215.5,1214.9,0.5051904]
[1610061804696,36.68749,1215.5,1214.8,0.50517545]
[1610061805099,36.68749,1215.5,1214.6,0.50521535]
[1610061805699,4.00959,1214.7,1214.6,0.50521535]
[1610061805899,4.00959,1214.7,1214.5,0.75782302]
[1610061805900,6.03149,1214.7,1214.5,0.50527016]
[1610061806506,6.03149,1214.7,1214.4,0.50530196]
[1610061806900,6.03149,1214.7,1214.5,0.50526869]
[1610061807302,6.03149,1214.7,1214.6,0.50523399]
[1610061807506,6.03149,1214.7,1214.6,0.75784246]
[1610061807901,6.03149,1214.7,1214.5,0.75785007]
[1610061808301,6.03149,1214.7,1214.6,0.50530746]
[1610061808704,6.03149,1214.7,1214.5,0.50533763]
[1610061809905,6.03149,1214.7,1214.6,0.50528434]
[1610061810303,6.03149,1214.7,1214.6,0.75790842]
[1610061810504,6.03149,1214.7,1214.6,0.50529199]
[1610061811204,6.03149,1214.7,1214.5,0.75793799]
[1610061811409,6.03149,1214.7,1214.6,0.50531325]
[1610061811808,6.03149,1214.7,1214.5,0.50535145]
[1610061812206,6.03149,1214.7,1214.4,0.50539273]
[1610061813207,6.03149,1214.7,1214.5,0.50536881]
[1610061813608,6.03149,1214.7,1214.3,0.75808909]
[1610061813609,6.03149,1214.7,1214.6,0.50531116]
[1610061814010,6.03149,1214.7,1214.5,1.01048302]
[1610061814410,6.03149,1214.7,1214.6,0.7579527]
[1610061815010,6.03149,1214.7,1214.6,0.50533212]
[1610061815411,6.03149,1214.7,1214.6,0.25266558]
[1610061818013,6.03149,1214.7,1214.6,0.50530064]
[1610061819115,6.03149,1214.7,1214.5,0.50530221]
[1610061820117,6.03149,1214.7,1214.6,1.76825818]
[1610061820315,6.03149,1214.7,1214.6,1.26296905]
[1610061820815,6.03149,1214.7,1214.6,2.02079718]
[1610061821416,6.03149,1214.7,1214.6,1.26296905]
[1610061821817,6.03149,1214.7,1214.6,2.27341355]
[1610061822219,6.03149,1214.7,1214.6,2.02083273]
[1610061822417,6.03149,1214.7,1214.6,1.7682572]
[1610061822818,6.03149,1214.7,1214.6,1.5156321]
[1610061823217,36.03149,1214.7,1214.6,1.26296905]
[1610061825520,36.03149,1214.7,1214.4,1.51602745]
[1610061825720,4.00959,1214.5,1214.4,1.51602745]
[1610061825920,34.00959,1214.5,1214.4,1.51602745]
[1610061826122,34.00959,1214.5,1214.4,1.26332264]
[1610061826521,65.2222,1214.4,1214.2,0.25273393]
[1610061826722,30.0,1214.3,1214.2,0.25273393]
[1610061826920,30.0,1214.3,1214.1,0.25274837]
[1610061827321,67.2163,1214.4,1214.1,0.25274837]
[1610061827722,4.00959,1214.2,1214.1,0.25274837]
[1610061827921,4.00959,1214.2,1214.0,0.50549674]
[1610061828322,4.00959,1214.2,1214.1,0.25273855]
[1610061829523,34.00959,1214.2,1213.9,0.50547654]
[1610061829724,34.00959,1214.0,1213.9,0.50547654]
[1610061829926,36.21799,1214.0,1213.7,1.0109542]
[1610061830126,62.6291,1213.7,1213.2,1.01139864]
[1610061830327,30.0,1213.6,1213.2,1.01139864]
[1610061830528,30.0,1213.6,1212.9,1.01163443]
[1610061830728,30.0,1213.6,1212.7,1.01173223]
[1610061831730,4.00959,1212.8,1212.7,1.01173223]
[1610061831932,6.56819,1212.8,1212.7,1.01173223]
[1610061832129,6.56819,1212.8,1212.6,1.01176644]
[1610061833131,6.56819,1212.8,1212.5,1.01191595]
[1610061833533,6.56819,1212.8,1212.7,1.26464844]
[1610061834132,6.56819,1212.8,1212.7,2.27641423]
[1610061834732,36.56819,1212.8,1212.7,2.27641423]
[1610061834932,36.56819,1212.8,1212.7,1.26464844]
[1610061834933,6.56819,1212.8,1212.7,1.26464844]
[1610061835435,15.75479,1212.8,1212.7,1.26464844]
[1610061835633,6.56819,1212.8,1212.7,1.26464844]
[1610061835832,62.0573,1212.7,1212.5,1.01184282]
[1610061836032,62.0573,1212.7,1212.2,1.0119687]
[1610061836232,30.0,1212.6,1212.2,1.0119687]
[1610061836433,30.0,1212.6,1212.0,1.0122825]
[1610061836632,30.0,1212.6,1211.9,1.01230007]
[1610061837632,30.0,1212.6,1211.8,1.01231979]
[1610061837832,4.00959,1211.9,1211.8,1.01231979]
[1610061838032,4.00959,1211.9,1211.6,4.1878872]
[1610061838633,34.00959,1211.9,1211.5,1.01260214]
[1610061838835,36.07769,1211.9,1211.5,1.01260214]
[1610061839034,36.07769,1211.9,1211.3,3.71635267]
[1610061839035,6.07769,1211.9,1211.3,1.01275904]
[1610061839434,6.07769,1211.9,1211.1,1.01281951]
[1610061839836,2.0681,1211.9,1211.5,0.25320238]
[1610061840034,2.0681,1211.9,1211.6,0.25320097]
[1610061840634,2.0681,1211.9,1211.5,0.5064189]
[1610061840837,2.0681,1211.9,1211.5,0.25321898]
[1610061841035,2.0681,1211.9,1211.3,0.50643796]
[1610061841240,32.0681,1211.9,1211.3,0.50643796]
[1610061841435,2.0681,1211.9,1211.3,0.50643796]
[1610061842174,4.00959,1211.4,1211.3,0.50643796]
[1610061842742,4.00959,1211.4,1211.3,0.7596268]
[1610061842746,6.71219,1211.4,1211.3,0.7596268]
[1610061842841,6.71219,1211.4,1211.3,0.5064538]
[1610061843247,6.71219,1211.4,1211.3,0.75982119]
[1610061843641,6.71219,1211.4,1211.3,0.50658158]
[1610061844243,75.28249,1211.4,1211.3,0.50658158]
[1610061844643,75.28249,1211.4,1211.1,0.75986514]
[1610061845046,6.71219,1211.4,1210.8,0.76003044]
[1610061845444,6.71219,1211.4,1210.9,0.76000776]
[1610061845743,6.71219,1211.4,1211.0,0.75991494]
[1610061845943,2.7026,1211.4,1211.0,0.75991494]
[1610061846143,2.7026,1211.4,1211.2,0.75983515]
[1610061846743,2.7026,1211.4,1211.0,0.75986485]
[1610061847145,2.7026,1211.4,1211.1,0.75991274]
[1610061847344,2.7026,1211.4,1211.2,0.7598174]
[1610061847546,2.0681,1211.9,1211.2,0.7598174]
[1610061847745,2.7627,1212.2,1211.2,1.01298402]
[1610061847944,4.00959,1211.3,1211.2,1.01298402]
[1610061848144,4.00959,1211.3,1211.1,1.01304076]
[1610061848744,4.00959,1211.3,1211.2,1.01307052]
[1610061849146,4.00959,1211.3,1211.1,1.01307499]
[1610061849344,4.00959,1211.3,1211.2,0.75985091]
[1610061849744,4.00959,1211.3,1211.1,0.75984437]
[1610061850147,4.00959,1211.3,1211.0,0.75986638]
[1610061850746,4.00959,1211.3,1211.1,0.75987521]
[1610061851146,4.00959,1211.3,1211.0,0.75989257]
[1610061851749,4.00959,1211.3,1211.2,1.01300802]
[1610061852549,4.00959,1211.3,1211.1,1.51923646]
[1610061852950,3.0739,1211.4,1211.0,58.07543502]
[1610061853151,2.7896,1212.1,1211.0,58.07543502]
[1610061853351,2.5586,1212.8,1211.1,2.02527123]
[1610061853549,3.475,1213.2,1211.1,2.02527123]
[1610061853749,3.475,1213.2,1211.9,4.13796161]
[1610061853950,4.00959,1212.2,1212.1,1.01230711]
[1610061854150,3.0395,1212.9,1212.1,1.01230711]
[1610061854350,3.0395,1212.9,1212.7,0.25305465]
[1610061854551,3.0395,1212.9,1212.4,0.75916396]
[1610061854552,3.0395,1212.9,1212.6,0.75907622]
[1610061854952,3.0395,1212.9,1212.8,0.75895746]
[1610061855151,9.058,1213.4,1212.8,0.75895746]
[1610061855552,9.058,1213.4,1212.7,1.01194327]
[1610061855760,9.058,1213.4,1213.0,0.25299962]
[1610061855956,4.00959,1213.1,1213.0,0.25299962]
[1610061856154,4.00959,1213.1,1213.0,0.50591916]
[1610061856554,4.00959,1213.1,1212.9,0.75882046]
[1610061856753,4.00959,1213.1,1213.0,0.75878562]
[1610061857154,4.00959,1213.1,1213.0,0.50586307]
[1610061857554,4.00959,1213.1,1213.0,0.75879831]
[1610061857758,2.146,1213.4,1213.0,0.75879831]
[1610061857957,6.15559,1213.4,1213.0,1.01166557]
[1610061858156,6.15559,1213.4,1213.3,0.5057781]
[1610061858655,6.15559,1213.4,1213.2,0.75866715]
[1610061859054,6.15559,1213.4,1213.0,1.26444524]
[1610061859055,6.15559,1213.4,1213.3,0.50570623]
[1610061859654,6.15559,1213.4,1213.3,0.25286846]
[1610061860357,6.15559,1213.4,1213.2,0.25291955]
[1610061860558,6.15559,1213.4,1213.1,0.50583911]
[1610061860757,6.15559,1213.4,1213.0,0.50586149]
[1610061861158,6.15559,1213.4,1212.8,0.5059774]
[1610061861958,4.00959,1212.9,1212.8,0.5059774]
[1610061863860,4.00959,1212.9,1212.8,0.75887875]
[1610061864762,4.00959,1212.9,1212.6,1.0118433]
[1610061864763,4.00959,1212.9,1212.7,0.75890826]
[1610061864964,4.00959,1212.9,1212.6,1.0118433]
[1610061864965,4.00959,1212.9,1212.8,0.5059801]
[1610061865363,4.00959,1212.9,1212.6,0.50609856]
[1610061865765,4.00959,1212.9,1212.3,0.50618446]
[1610061865964,4.00959,1212.4,1212.2,0.50618622]
[1610061867864,4.00959,1212.4,1212.1,0.75927933]
[1610061868068,4.00959,1212.4,1212.0,0.75931146]
[1610061868465,4.00959,1212.4,1211.9,1.01236851]
[1610061868466,4.00959,1212.4,1211.9,0.75942129]
[1610061868866,4.00959,1212.4,1211.7,0.75953864]
[1610061869266,34.00959,1212.4,1211.5,0.75959757]
[1610061869465,41.34969,1212.4,1211.5,0.75959757]
[1610061869666,34.00959,1212.4,1211.5,0.75959757]
[1610061869865,64.7543,1212.2,1211.5,0.75959757]
[1610061870065,30.0,1211.5,1211.3,0.75981113]
[1610061870466,30.0,1211.5,1211.1,0.75986222]
[1610061870667,30.0,1211.5,1211.2,0.2533074]
[1610061871068,66.68949,1211.6,1211.1,0.25330866]
[1610061871467,36.43119,1211.6,1210.8,0.75992147]
[1610061871668,51.4985,1211.5,1210.8,0.75992147]
[1610061871868,30.0,1211.4,1210.8,0.75992147]
[1610061872067,4.00959,1210.9,1210.7,1.01322863]
[1610061872267,4.00959,1210.9,1210.6,0.76002635]
[1610061872268,6.99219,1210.9,1210.6,0.76002635]
[1610061872668,6.99219,1210.9,1210.5,0.76012986]
[1610061872867,6.99219,1210.9,1210.4,1.01350647]
[1610061872868,6.99219,1210.9,1210.4,0.76014474]
[1610061873768,6.99219,1210.9,1210.5,1.26675217]
[1610061873968,4.00959,1210.6,1210.5,1.26675217]
[1610061874168,6.12019,1210.6,1210.4,0.76014474]
[1610061874368,6.12019,1210.6,1210.3,0.76024661]
[1610061874769,6.12019,1210.6,1210.1,0.76034302]
[1610061875170,6.12019,1210.6,1210.2,0.76028294]
[1610061876074,4.00959,1210.3,1210.2,0.76028294]
[1610061876271,6.13319,1210.3,1210.2,0.76028294]
[1610061876472,6.13319,1210.3,1210.1,0.76042498]
[1610061877174,6.13319,1210.3,1210.0,0.76045474]
[1610061877573,6.13319,1210.3,1209.9,0.76054248]
[1610061877873,6.13319,1210.3,1209.7,0.76055245]
[1610061878076,4.00959,1210.0,1209.7,0.76055245]
[1610061878274,6.84809,1210.0,1209.8,0.50705132]
[1610061878677,6.84809,1210.0,1209.7,0.50706437]
[1610061879274,6.84809,1210.0,1209.6,0.50709433]
[1610061880075,4.00959,1209.7,1209.5,0.76063426]
[1610061880278,6.20559,1209.7,1209.5,0.76063426]
[1610061880477,6.20559,1209.7,1209.3,0.50721593]
[1610061880878,6.20559,1209.7,1209.0,0.50727088]
[1610061881477,6.20559,1209.7,1209.1,0.50724975]
[1610061881877,6.20559,1209.7,1209.2,0.25361844]
[1610061882078,4.00959,1209.3,1209.2,0.25361844]
[1610061882478,2.196,1209.7,1209.2,1.0142893]
[1610061882878,2.196,1209.7,1209.6,0.50710208]
[1610061883277,2.196,1209.7,1209.4,0.76065311]
[1610061883278,2.8385,1210.0,1209.5,0.76061928]
[1610061883479,2.1236,1210.3,1209.5,0.76061928]
[1610061883678,0.02171085,1211.2,1209.9,0.25353142]
[1610061883880,0.06513815,1211.3,1209.9,0.25353142]
[1610061884279,0.02173287,1211.4,1210.1,8.85589159]
[1610061884679,0.02178846,1211.9,1210.6,0.25346605]
[1610061884878,0.02179777,1212.0,1210.7,0.2534335]
[1610061885478,0.02180788,1212.1,1210.8,0.25341804]
[1610061885678,0.06542171,1212.1,1210.7,0.25340102]
[1610061886078,4.00959,1210.8,1210.7,0.25340102]
[1610061887082,4.00959,1210.8,1210.6,3.08171757]
[1610061887481,4.00959,1210.8,1210.7,0.25342112]
[1610061887782,4.00959,1210.8,1210.6,3.58853038]
[1610061888182,4.00959,1210.8,1210.7,0.76020229]
[1610061888584,4.00959,1210.8,1210.6,3.58848318]
[1610061888994,4.00959,1210.8,1210.7,0.50680958]
[1610061889187,4.00959,1210.8,1210.7,0.25342689]
[1610061889886,4.00959,1210.8,1210.6,3.33515378]
[1610061890287,4.00959,1210.8,1210.7,0.25342857]
[1610061890687,4.00959,1210.8,1210.6,2.8283]
[1610061891088,4.00959,1210.8,1210.5,0.25344212]
[1610061891791,4.00959,1210.8,1210.3,0.25348751]
[1610061891991,4.00959,1210.4,1210.3,0.25348751]
[1610061892191,4.00959,1210.4,1210.2,0.25347527]
[1610061892492,4.00959,1210.4,1210.3,0.25346951]
[1610061892691,4.00959,1210.4,1210.3,0.76042375]
[1610061892891,4.00959,1210.4,1210.3,0.50695424]
[1610061893091,4.00959,1210.4,1210.3,0.25347923]
[1610061893793,4.00959,1210.4,1210.3,0.5069507]
[1610061894794,4.00959,1210.4,1210.2,0.25350088]
[1610061895494,4.00959,1210.4,1210.1,0.25353284]
[1610061895895,4.00959,1210.4,1210.2,0.25352625]
[1610061896495,4.00959,1210.4,1210.3,0.50697964]
[1610061897296,4.00959,1210.4,1210.3,3.05567964]
[1610061897496,4.00959,1210.4,1210.3,3.56263398]
[1610061897897,4.00959,1210.4,1210.3,3.05567043]
[1610061899696,5.4408,1211.3,1210.3,3.05567043]
[1610061900097,4.00959,1210.8,1210.7,4.00959]
[1610061900398,4.00959,1210.8,1210.7,0.50684356]
[1610061900799,3.475,1211.3,1210.7,0.76022148]
[1610061901200,3.475,1211.3,1211.1,0.25340064]
[1610061901400,2.4873,1211.8,1211.0,0.25339406]
[1610061901599,0.02194294,1212.2,1211.0,0.25339406]
[1610061901802,3.49690864,1212.3,1211.1,0.25337338]
[1610061902201,4.00959,1211.2,1211.1,0.25337338]
[1610061902602,4.00959,1211.2,1211.0,3.58466694]
[1610061902802,4.00959,1211.2,1211.0,3.33128539]
[1610061903602,4.00959,1211.2,1211.0,3.0779]
[1610061905303,4.00959,1211.2,1210.6,0.25346413]
[1610061905505,4.00959,1211.2,1210.4,0.2534864]
[1610061905903,4.00959,1211.2,1210.3,0.50697281]
[1610061905904,4.00959,1211.2,1210.3,0.2535094]
[1610061906103,4.00959,1210.4,1210.3,0.2535094]
[1610061906906,4.00959,1210.4,1210.2,0.25351904]
[1610061907107,7.02729,1210.4,1210.2,0.25351904]
[1610061907504,7.02729,1210.4,1210.1,0.25357029]
[1610061907704,7.02729,1210.4,1210.0,0.25357648]
[1610061908208,4.00959,1210.1,1209.9,0.25357523]
[1610061908804,4.00959,1210.1,1209.8,0.25359198]
[1610061909806,4.00959,1210.1,1209.7,0.5072092]
[1610061910004,6.07629,1210.1,1209.6,0.50726183]
[1610061910205,4.00959,1209.7,1209.6,0.50726183]
[1610061910406,6.45139,1209.7,1209.4,0.50727715]
[1610061910607,36.45139,1209.7,1209.3,0.50733036]
[1610061911005,36.45139,1209.7,1209.0,1.01466072]
[1610061911006,6.45139,1209.7,1209.0,0.5073835]
[1610061911406,36.45139,1209.7,1208.9,0.50742798]
[1610061911707,36.45139,1209.7,1208.8,0.50747297]
[1610061911907,6.45139,1209.7,1208.8,0.50747297]
[1610061912105,4.00959,1208.9,1208.8,0.50747297]
[1610061912305,6.45499,1208.9,1208.8,0.50747297]
[1610061913306,6.45499,1208.9,1208.8,1.77606337]
[1610061913506,6.45499,1208.9,1208.8,1.2685904]
[1610061913706,6.45499,1208.9,1208.5,0.7613101]
[1610061913707,6.45499,1208.9,1208.6,0.5075886]
[1610061914107,4.00959,1208.7,1208.3,0.50765505]
[1610061914913,4.00959,1208.7,1208.2,0.50769064]
[1610061915716,4.00959,1208.7,1208.1,0.50771408]
[1610061916115,2.4454,1208.9,1208.1,0.50771408]
[1610061916116,4.00959,1208.2,1208.1,0.50771408]
[1610061916516,4.00959,1208.2,1208.0,0.5077853]
[1610061916919,4.00959,1208.2,1207.9,0.50791917]
[1610061917318,12.04029,1208.2,1207.6,0.76195047]
[1610061917518,4.00959,1208.2,1207.6,0.76195047]
[1610061917719,57.6193,1208.0,1207.4,0.76200716]
[1610061917921,60.8014,1208.0,1207.4,0.76200716]
[1610061918119,4.00959,1207.5,1207.4,0.76200716]
[1610061918321,7.11359,1207.5,1207.2,1.01605974]
[1610061918520,67.2572,1207.4,1207.2,0.76216463]
[1610061918721,67.2572,1207.4,1206.9,1.01632435]
[1610061919321,67.2572,1207.4,1206.7,1.27040543]
[1610061919322,7.11359,1207.5,1206.7,1.01653189]
[1610061919726,62.6792,1206.7,1206.4,0.40416971]
[1610061920123,4.00959,1206.5,1206.4,0.40416971]
[1610061921924,2.9739,1206.7,1206.4,0.40416971]
[1610061922125,4.00959,1206.6,1206.4,0.40416971]
[1610061922324,4.00959,1206.6,1206.5,1.01655239]
[1610061922922,3.104,1207.5,1206.5,1.01655239]
[1610061923123,3.104,1207.5,1206.5,1.2705749]
[1610061923324,3.1821,1208.0,1206.5,1.2705749]
[1610061923523,2.912,1208.3,1206.5,1.2705749]
[1610061923726,2.912,1208.3,1207.2,0.25406376]
[1610061923924,0.02150755,1208.6,1207.2,2.43786376]
[1610061924123,4.00959,1208.6,1208.5,4.00959]
[1610061924325,4.00959,1208.6,1207.6,3.32945155]
[1610061924525,4.00959,1208.6,1208.0,0.25398319]
[1610061924723,4.00959,1208.6,1208.2,0.25393477]
[1610061925124,3.475,1209.4,1208.4,0.2538989]
[1610061925524,3.475,1209.4,1208.5,0.25386638]
[1610061925924,3.475,1209.4,1208.7,0.25383689]
[1610061926123,4.00959,1208.8,1208.7,2.68573689]
[1610061926525,4.00959,1208.8,1208.2,1.26918446]
[1610061926724,4.00959,1208.8,1208.0,2.984]
[1610061927726,4.00959,1208.8,1208.1,0.50773653]
[1610061928227,4.00959,1208.2,1207.9,0.50786793]
[1610061928431,2.3833,1208.2,1207.7,0.50794422]
[1610061928835,2.3833,1208.2,1207.9,0.50786381]
[1610061929027,2.3833,1208.2,1208.1,0.76168247]
[1610061929432,2.3833,1208.2,1207.9,1.01557662]
[1610061929433,2.3833,1208.2,1207.9,0.50781768]